bitfinex-derivatives/quotes_ETHF0:USTF0_20260316
["timestamp","ask_amount","ask_price","bid_price","bid_amount"]
[1773684218198,3.68919654,2316.2,2315.2,3.751889]
[1773684218697,0.0046883,2316.2,2315.2,3.751889]
[1773684218893,3.60945447,2317.0,2315.7,3.427119]
[1773684219098,3.68450824,2316.9,2315.7,3.427119]
[1773684219997,3.68939453,2316.9,2315.7,3.427119]
[1773684220496,3.68939453,2316.9,2315.9,3.427119]
[1773684222201,3.97356791,2316.9,2315.9,3.427119]
[1773684222897,3.68939453,2316.9,2315.9,3.427119]
[1773684224594,1e-08,2316.9,2316.1,3.427119]
[1773684224996,3.68450824,2317.6,2316.1,3.427119]
[1773684225391,3.90031336,2317.6,2316.3,3.427119]
[1773684225996,3.90586157,2317.6,2316.3,3.4321618]
[1773684230205,4.12159157,2317.6,2316.3,3.4321618]
[1773684231505,3.90586157,2317.6,2316.5,3.427119]
[1773684231701,3.69005645,2317.6,2316.7,3.427119]
[1773684233207,3.58536477,2317.9,2316.9,3.12456052]
[1773684233508,3.31197395,2317.9,2316.9,3.12456052]
[1773684234306,3.31752029,2317.9,2316.9,3.12456052]
[1773684236512,3.32429942,2317.7,2316.4,3.21804797]
[1773684236714,3.32429942,2317.5,2316.4,3.21804797]
[1773684240114,3.32429942,2317.8,2316.4,3.43387797]
[1773684242014,3.53624608,2317.8,2316.4,3.43387797]
[1773684245424,3.53624608,2317.8,2316.4,3.54220797]
[1773684245822,3.53624608,2317.8,2316.7,3.32824797]
[1773684246718,3.53624608,2317.8,2316.7,3.21804797]
[1773684248621,3.32429942,2317.6,2316.5,3.21804797]
[1773684248820,3.32429942,2317.4,2316.5,3.21804797]
[1773684249722,3.32429942,2317.4,2316.3,3.22309077]
[1773684251126,3.32429942,2317.4,2316.7,3.21804797]
[1773684251326,0.21194666,2317.8,2316.7,3.21804797]
[1773684251327,3.32429942,2317.7,2316.7,3.21804797]
[1773684252525,0.21194666,2317.8,2316.9,3.21804797]
[1773684252725,3.32429942,2318.4,2317.1,3.21804797]
[1773684253930,3.32885971,2318.4,2317.1,3.21804797]
[1773684254525,3.32885971,2318.4,2317.3,3.21804797]
[1773684255429,3.32885971,2318.4,2317.5,3.21804797]
[1773684255625,0.00456029,2318.4,2317.7,3.21804797]
[1773684255824,3.32429942,2318.8,2317.7,3.21804797]
[1773684256829,0.00531081,2318.8,2317.7,3.21804797]
[1773684257023,3.32961023,2318.8,2317.7,3.21804797]
[1773684260333,3.54523023,2318.8,2317.2,3.21804797]
[1773684261227,3.32961023,2318.8,2317.4,3.21804797]
[1773684266232,3.32961023,2318.8,2317.7,0.21572]
[1773684266437,3.32961023,2318.8,2317.8,3.11588493]
[1773684267534,3.32961023,2318.8,2317.2,6.97256179]
[1773684267535,2.84648576,2318.6,2317.2,3.11588493]
[1773684267739,2.84648576,2318.4,2317.2,3.11588493]
[1773684268434,2.84648576,2318.2,2317.2,3.11588493]
[1773684270036,2.84648576,2318.0,2316.5,6.75680179]
[1773684270242,2.84648576,2318.0,2316.6,3.11588493]
[1773684277645,2.84648576,2318.0,2316.6,3.33169493]
[1773684287250,2.84648576,2318.0,2317.1,3.11588493]
[1773684287647,2.84648576,2318.0,2317.3,3.11588493]
[1773684287853,2.84648576,2318.6,2317.7,3.11588493]
[1773684288350,3.60945447,2319.5,2318.1,3.11588493]
[1773684288651,2.84648576,2319.1,2318.1,3.11588493]
[1773684289448,2.85064202,2319.1,2318.1,3.11953351]
[1773684294259,2.85064202,2319.1,2318.1,0.00364858]
[1773684295459,2.85064202,2319.1,2317.7,2.75460132]
[1773684295759,2.91068646,2318.9,2317.7,2.75460132]
[1773684295958,3.01937646,2318.9,2317.7,2.75460132]
[1773684296561,2.91068646,2318.9,2317.7,2.75779089]
[1773684297562,2.80383646,2318.9,2317.7,2.75779089]
[1773684298063,2.69508646,2318.9,2317.7,2.75779089]
[1773684300362,2.91350392,2319.1,2317.9,2.75460132]
[1773684301564,2.69508646,2318.9,2317.8,2.75460132]
[1773684302364,2.69508646,2318.7,2317.8,2.75460132]
[1773684302561,2.69508646,2318.7,2317.7,2.75779089]
[1773684305872,2.91154395,2318.7,2317.7,2.75779089]
[1773684310671,2.69508646,2318.5,2317.2,2.75460132]
[1773684310871,2.69508646,2318.3,2317.2,2.75460132]
[1773684311272,2.69508646,2318.1,2317.2,2.75460132]
[1773684311773,2.69508646,2318.1,2317.2,2.7599976]
[1773684312977,3.60945447,2318.5,2317.2,2.7599976]
[1773684313175,2.69508646,2318.6,2317.4,2.75460132]
[1773684313674,2.69508646,2318.4,2317.4,2.75460132]
[1773684317777,0.21240973,2318.6,2317.6,2.75460132]
[1773684317778,2.69508646,2318.6,2317.6,2.75460132]
[1773684319373,2.69508646,2319.0,2317.6,2.75460132]
[1773684319578,2.69508646,2318.8,2317.6,2.75460132]
[1773684320582,2.69508646,2318.6,2317.6,2.75460132]
[1773684329486,2.65573127,2318.4,2317.6,2.75460132]
[1773684331885,2.65573127,2318.4,2317.2,6.76219807]
[1773684331886,2.65573127,2318.4,2317.3,2.75607133]
[1773684332087,2.65573127,2318.2,2317.3,2.75607133]
[1773684334288,2.65573127,2318.0,2317.3,2.75607133]
[1773684334686,2.65573127,2318.3,2317.3,2.75607133]
[1773684334990,2.65573127,2318.2,2317.3,2.75607133]
[1773684336286,2.65573127,2318.4,2317.5,2.75607133]
[1773684338987,2.65573127,2318.2,2317.5,2.75607133]
[1773684339591,2.65573127,2318.2,2317.3,2.75607133]
[1773684343696,2.87264512,2318.2,2317.3,2.75607133]
[1773684344296,2.65573127,2318.5,2317.4,2.75607133]
[1773684345597,2.65573127,2318.5,2317.5,2.75607133]
[1773684346196,2.65573127,2318.5,2317.6,2.75607133]
[1773684347899,2.65573127,2318.8,2317.7,2.75607133]
[1773684348094,5.17289396,2318.7,2317.7,2.75607133]
[1773684348297,2.65573127,2318.6,2317.7,2.75607133]
[1773684349896,2.65573127,2318.8,2317.8,2.75607133]
[1773684350095,2.65573127,2318.8,2317.2,0.00539628]
[1773684350096,2.65573127,2318.2,2317.2,2.76146761]
[1773684350400,5.17337314,2318.1,2317.2,2.76146761]
[1773684350598,2.65573127,2318.0,2317.2,2.76146761]
[1773684352395,2.74262633,2318.3,2317.2,2.76146761]
[1773684352797,2.74262633,2318.1,2317.2,2.76146761]
[1773684357506,2.95711232,2318.1,2317.2,2.76146761]
[1773684358804,2.64428281,2318.8,2317.2,2.76146761]
[1773684359106,2.85590088,2318.8,2317.8,2.54340972]
[1773684360203,2.64428281,2318.6,2317.8,2.54340972]
[1773684361306,0.21161807,2318.8,2317.8,2.54340972]
[1773684361507,2.64428281,2318.8,2317.8,2.54340972]
[1773684361707,8.02104353,2318.7,2317.8,2.54340972]
[1773684362008,2.64428281,2318.7,2317.8,2.54340972]
[1773684364713,0.35965278,2317.5,2316.2,11.57157332]
[1773684365006,0.35965278,2317.5,2316.4,2.54340972]
[1773684365806,0.35965278,2317.5,2316.4,2.54650765]
[1773684366402,0.47661278,2317.5,2316.4,2.54650765]
[1773684366606,0.69071117,2317.4,2316.4,2.54650765]
[1773684366802,0.69450998,2317.4,2316.4,2.54650765]
[1773684367008,0.57780998,2317.4,2316.4,2.54650765]
[1773684367310,0.69146998,2317.4,2316.4,2.54650765]
[1773684369216,0.6717474,2317.3,2316.4,2.54650765]
[1773684370816,0.12182,2317.3,2316.4,2.54650765]
[1773684371412,0.63556491,2317.4,2316.4,2.54650765]
[1773684372109,0.52731491,2317.4,2316.4,2.54650765]
[1773684373918,173.52731491,2317.4,2316.4,2.54650765]
[1773684376421,0.50951777,2317.3,2316.4,2.54650765]
[1773684378323,173.00379881,2317.4,2316.4,2.54650765]
[1773684379420,173.49565347,2317.4,2316.4,2.54650765]
[1773684380725,0.49565347,2317.4,2316.4,2.54650765]
[1773684382932,0.48665501,2317.8,2316.4,2.76233765]
[1773684383227,0.21544136,2317.8,2316.4,2.76233765]
[1773684383431,0.48552561,2318.1,2316.6,2.8209081]
[1773684384032,0.47975092,2318.0,2316.6,2.8209081]
[1773684384233,0.47975092,2318.0,2316.8,2.6050881]
[1773684387431,3.60292733,2318.8,2317.7,0.21571]
[1773684387639,0.98633392,2319.4,2317.8,2.56884236]
[1773684387828,0.98633392,2319.4,2317.9,2.56884236]
[1773684388029,0.98100791,2320.1,2317.9,2.56884236]
[1773684388335,0.98100791,2319.9,2318.1,2.56884236]
[1773684388631,0.00551559,2319.9,2318.5,2.56884236]
[1773684388837,0.98940909,2320.8,2319.3,2.56884236]
[1773684389129,1.04964138,2320.7,2319.3,2.56884236]
[1773684389525,1.32833019,2320.7,2319.3,2.56884236]
[1773684389730,1.10266799,2320.6,2319.3,2.56884236]
[1773684391334,173.0,2320.6,2319.3,2.56884236]
[1773684391626,173.0,2320.6,2319.5,2.56884236]
[1773684392726,173.93696854,2320.6,2319.5,2.56884236]
[1773684393230,0.93152191,2320.5,2319.5,2.56884236]
[1773684393834,1.60661033,2319.8,2318.3,2.56884236]
[1773684394533,1.62763933,2319.6,2318.3,2.56884236]
[1773684394733,1.62763933,2319.4,2318.3,2.56884236]
[1773684399530,1.66686542,2319.7,2318.3,2.56884236]
[1773684399737,1.45238869,2319.7,2318.3,2.56884236]
[1773684404438,1.43222039,2320.1,2318.5,2.56884236]
[1773684404638,1.43222039,2320.1,2318.4,0.21565]
[1773684404639,173.0,2320.6,2319.1,2.56884236]
[1773684404940,173.0,2320.6,2319.3,2.56884236]
[1773684405237,173.0,2320.6,2319.5,2.56884236]
[1773684405440,127.36324569,2320.6,2319.5,8.83756]
[1773684405740,2.84880151,2322.2,2319.8,0.21551]
[1773684405944,2.84880151,2321.6,2319.8,0.21551]
[1773684406244,2.84880151,2321.6,2320.0,0.2155]
[1773684406541,2.84880151,2321.6,2320.1,4.91748653]
[1773684406740,1.01083106,2321.0,2320.2,0.21548]
[1773684406942,45.00425972,2321.5,2320.3,6.707]
[1773684407145,1.01083106,2321.2,2320.4,2.56884236]
[1773684407339,2.87571975,2321.1,2320.4,2.56884236]
[1773684407537,1.01083106,2321.0,2320.4,2.56884236]
[1773684407944,1.01083106,2320.7,2320.4,1.38325765]
[1773684408337,3.46851211,2321.2,2320.4,1.38325765]
[1773684409136,4.00953996,2321.0,2320.2,2.56884236]
[1773684409839,4.04343198,2320.8,2320.1,0.00361775]
[1773684410542,4.04607179,2320.6,2320.1,0.00361775]
[1773684410735,4.04607179,2320.6,2319.4,2.56884236]
[1773684410939,4.04607179,2320.4,2319.4,2.56884236]
[1773684411443,4.04607179,2320.2,2319.0,2.56884236]
[1773684411743,4.04607179,2320.2,2319.0,2.57241881]
[1773684411944,4.04868261,2320.0,2319.0,2.57241881]
[1773684412144,4.04868261,2319.8,2318.3,2.56884236]
[1773684412540,8.18057389,2319.6,2318.3,2.56884236]
[1773684413138,8.18057389,2319.4,2318.3,2.57216118]
[1773684413941,8.18057389,2319.2,2318.3,2.57216118]
[1773684415445,8.47110899,2319.0,2318.3,0.00331882]
[1773684415740,8.47110899,2319.3,2318.3,8.79521418]
[1773684416148,0.00364119,2319.6,2318.5,6.03301165]
[1773684416342,0.21544,2320.7,2319.3,2.48738671]
[1773684416343,8.47110899,2320.6,2319.3,2.48738671]
[1773684416538,29.26297878,2320.6,2319.3,2.48738671]
[1773684416743,29.26297878,2320.6,2319.5,2.48738671]
[1773684417145,8.47110899,2320.5,2319.7,2.70509215]
[1773684417345,0.0046035,2320.5,2319.7,2.70509215]
[1773684417548,0.21603043,2321.5,2319.3,8.62285]
[1773684417549,8.47110899,2321.6,2319.9,2.67943291]
[1773684417744,8.47110899,2321.1,2319.9,2.67943291]
[1773684417945,8.47110899,2321.1,2320.1,2.67943291]
[1773684418147,37.73408777,2321.0,2320.1,2.67943291]
[1773684418345,8.47110899,2320.9,2320.1,2.67943291]
[1773684418646,8.47446128,2320.9,2320.1,0.00373299]
[1773684418841,8.47110899,2320.7,2320.1,0.00373299]
[1773684419443,8.47110899,2320.5,2318.9,3.47255039]
[1773684419847,8.47110899,2320.5,2319.2,3.47255039]
[1773684420346,8.47110899,2320.5,2319.2,3.47781274]
[1773684420949,8.47110899,2320.3,2319.2,0.00526235]
[1773684421341,8.47110899,2320.3,2319.2,3.44872136]
[1773684421552,37.73408777,2320.2,2319.2,3.44872136]
[1773684421752,8.47110899,2320.2,2319.2,3.44872136]
[1773684422148,8.47110899,2320.0,2319.2,3.44872136]
[1773684422547,29.26297878,2320.6,2319.2,3.44872136]
[1773684422548,8.47110899,2320.5,2319.4,3.3757372]
[1773684422749,8.47110899,2320.5,2319.6,3.3757372]
[1773684422950,8.47110899,2320.3,2319.3,3.3757372]
[1773684423549,25.92048288,2320.2,2319.6,0.21554]
[1773684423756,24.25625972,2320.4,2319.6,0.21554]
[1773684424351,10.96181553,2320.3,2319.3,0.02518914]
[1773684424650,10.96181553,2320.3,2319.2,0.00526235]
[1773684425050,10.96181553,2320.3,2319.2,0.03045149]
[1773684425251,24.25625972,2320.2,2319.4,0.22743776]
[1773684425454,33.53020769,2320.2,2319.5,0.21555]
[1773684425649,25.92048288,2320.1,2319.6,0.21792449]
[1773684425857,9.27394797,2320.5,2319.6,0.21792449]
[1773684426056,35.19443085,2320.4,2319.6,0.21792449]
[1773684426256,9.27394797,2320.4,2319.6,0.21792449]
[1773684427157,9.16156531,2320.2,2319.3,0.37845332]
[1773684427657,9.16902427,2320.0,2319.3,0.37845332]
[1773684428349,9.16902427,2320.0,2319.2,0.00526235]
[1773684428555,35.02898121,2319.9,2319.2,0.5660566]
[1773684428857,9.05323333,2320.4,2319.5,0.56298425]
[1773684429154,34.97371621,2320.7,2319.7,0.530911]
[1773684429354,9.05323333,2320.7,2319.7,0.530911]
[1773684429558,9.05320664,2320.5,2319.5,0.53096438]
[1773684430260,9.05320664,2320.3,2319.5,0.53096438]
[1773684430756,25.92048288,2320.2,2319.5,0.53096438]
[1773684430955,25.92048288,2320.2,2319.5,0.63987438]
[1773684432254,25.92048288,2320.2,2319.5,0.63894438]
[1773684432460,9.27452316,2320.8,2319.6,4.98074715]
[1773684432659,9.27452316,2320.7,2319.6,4.98074715]
[1773684432850,9.27452316,2320.7,2319.6,0.32893]
[1773684433959,9.27452316,2320.7,2319.7,0.51824357]
[1773684434159,9.27452316,2320.7,2319.8,0.51504357]
[1773684434456,18.53025642,2320.6,2319.8,0.51504357]
[1773684434660,9.3298313,2320.5,2319.8,0.11868]
[1773684435056,9.3298313,2320.3,2319.8,0.42388164]
[1773684435263,27.75158772,2320.8,2320.0,0.52070164]
[1773684435562,27.75158772,2320.8,2320.2,0.28248368]
[1773684435756,27.75158772,2320.8,2320.2,0.39626368]
[1773684435958,27.7629467,2320.7,2320.1,4.80312903]
[1773684436161,27.7629467,2320.7,2320.1,0.36192508]
[1773684436461,9.47037838,2320.6,2320.0,0.32635]
[1773684436861,9.47037838,2320.6,2319.7,6.719]
[1773684436862,27.8921348,2320.5,2319.7,6.82754]
[1773684437061,9.47037838,2320.5,2319.7,6.82754]
[1773684437255,9.47037838,2320.5,2319.8,4.98360937]
[1773684437459,18.42175642,2320.5,2319.9,0.28201432]
[1773684437659,18.42175642,2320.5,2319.9,0.21551]
[1773684437858,18.42175642,2320.5,2319.9,0.32606]
[1773684438057,18.31337642,2320.5,2319.9,0.21551]
[1773684438560,18.20510642,2320.5,2319.9,0.21551]
[1773684438755,9.86241887,2320.7,2319.9,0.21551]
[1773684439058,0.00335229,2320.9,2320.1,0.21549]
[1773684439059,9.86720448,2320.9,2320.1,0.21549]
[1773684439359,15.57108328,2320.8,2320.2,13.32652681]
[1773684439560,9.85994112,2321.3,2320.5,0.21545]
[1773684439762,9.85994112,2322.2,2320.7,0.21544]
[1773684439960,10.07524112,2322.2,2320.6,4.7993946]
[1773684440167,9.85994112,2322.0,2320.4,6.721]
[1773684440355,9.85994112,2321.8,2320.4,6.83088]
[1773684440561,9.86050593,2321.6,2320.4,6.83088]
[1773684441062,9.86050593,2321.6,2320.8,0.44285857]
[1773684441256,9.86050593,2321.6,2320.9,0.43610857]
[1773684441465,9.86050593,2321.6,2320.9,0.33201025]
[1773684441665,9.86050593,2321.6,2320.9,0.00399168]
[1773684442066,9.86050593,2321.6,2320.4,6.721]
[1773684442261,9.81837262,2321.4,2319.8,0.37168937]
[1773684442461,9.89647906,2321.2,2319.8,7.09468937]
[1773684442663,9.89647906,2321.2,2319.9,4.49588288]
[1773684442866,9.89647906,2321.2,2320.2,0.17191063]
[1773684443068,9.89647906,2321.2,2320.3,0.39750824]
[1773684443370,9.89647906,2321.2,2320.3,0.18203824]
[1773684443763,9.8562044,2321.7,2320.5,0.32118681]
[1773684444364,9.8562044,2321.7,2320.7,0.62889021]
[1773684444564,9.8562044,2321.7,2320.7,0.32323]
[1773684444758,9.8562044,2321.7,2320.7,0.32427]
[1773684445164,9.8562044,2321.7,2320.7,0.59387396]
[1773684445462,10.0715444,2321.7,2320.6,6.725]
[1773684445663,9.85850901,2321.6,2320.6,6.725]
[1773684446163,9.85850901,2321.6,2320.6,6.90999555]
[1773684446364,9.85850901,2321.6,2320.7,0.14459298]
[1773684446563,9.85850901,2321.6,2320.6,6.725]
[1773684447564,9.85850901,2321.6,2320.7,0.30945631]
[1773684448359,9.85850901,2321.6,2320.6,7.04882]
[1773684448560,9.85850901,2321.6,2320.6,7.31335172]
[1773684448763,9.85850901,2321.6,2320.6,7.20497172]
[1773684448967,9.85850901,2321.6,2320.6,7.31329172]
[1773684449166,9.85850901,2321.6,2320.6,7.31359172]
[1773684449568,9.85850901,2321.6,2320.6,7.31278172]
[1773684449768,9.85850901,2321.6,2320.7,0.32960418]
[1773684449970,9.85850901,2321.6,2320.8,0.33024418]
[1773684450172,9.85850901,2321.6,2320.8,0.32813418]
[1773684450670,9.85850901,2321.6,2320.9,0.30813313]
[1773684451174,9.8562044,2321.7,2321.0,0.32687]
[1773684451367,9.8562044,2321.7,2321.1,0.32518485]
[1773684451671,9.8562044,2321.7,2321.1,0.11197]
[1773684451971,9.8562044,2321.7,2320.7,4.99032825]
[1773684451972,9.8562044,2321.7,2320.8,0.38857825]
[1773684452170,9.8562044,2321.7,2320.9,0.28489825]
[1773684452367,9.8562044,2321.7,2321.0,0.28563825]
[1773684452869,9.8562044,2322.5,2321.8,0.21533]
[1773684453072,9.8562044,2322.5,2321.6,6.9428883]
[1773684453367,9.8562044,2322.5,2321.8,0.62941679]
[1773684453567,9.8562044,2322.5,2321.9,0.22586224]
[1773684453768,9.86022628,2322.5,2321.9,0.00516985]
[1773684454065,9.86022628,2322.5,2321.9,0.11440985]
[1773684454268,9.86022628,2322.5,2321.9,0.00516985]
[1773684454468,0.00402188,2322.5,2321.9,0.00516985]
[1773684454666,9.8562044,2323.6,2322.0,5.05860477]
[1773684454867,9.8562044,2323.5,2322.1,0.21531]
[1773684455266,9.8562044,2323.5,2321.0,8.9571113]
[1773684455267,9.8562044,2323.1,2321.4,0.21537]
[1773684455462,9.8562044,2322.9,2320.9,0.13666849]
[1773684455871,9.8562044,2322.7,2321.2,0.13666849]
[1773684456168,9.86038824,2322.7,2321.2,0.13666849]
[1773684456377,9.8562044,2322.5,2321.2,0.00337872]
[1773684456576,9.8562044,2322.5,2321.3,0.04771509]
[1773684456775,9.8562044,2322.5,2321.3,4.69015039]
[1773684457274,9.8562044,2322.3,2321.2,0.00337872]
[1773684457474,9.8562044,2322.3,2320.8,0.7151455]
[1773684457475,9.8562044,2322.3,2320.8,0.68451204]
[1773684457667,9.8562044,2322.3,2321.0,0.68451204]
[1773684457968,9.8562044,2322.3,2321.3,0.21538]
[1773684458174,9.8562044,2322.3,2321.4,0.64267801]
[1773684458375,9.8562044,2322.3,2321.4,0.64644259]
[1773684458575,9.8562044,2322.3,2321.4,0.00376458]
[1773684458772,9.8562044,2322.3,2321.4,0.81016323]
[1773684459376,9.8562044,2322.3,2321.5,5.5111387]
[1773684459772,0.00418384,2322.7,2321.6,1.31673017]
[1773684460174,0.00418384,2322.7,2321.8,1.05969487]
[1773684460376,0.00418384,2322.7,2322.0,1.08866103]
[1773684460576,0.00418384,2322.7,2322.0,1.19656103]
[1773684460881,9.8562044,2324.3,2322.3,1.41260103]
[1773684461081,9.8562044,2324.3,2322.3,1.30395103]
[1773684461279,9.8562044,2324.3,2322.7,0.21525]
[1773684461481,9.8562044,2324.3,2322.8,1.04702885]
[1773684461781,9.85988678,2324.3,2322.8,12.71428557]
[1773684461977,9.85988678,2324.3,2322.8,7.78002885]
[1773684462174,9.85988678,2324.3,2323.0,0.94704483]
[1773684462673,9.85988678,2324.3,2322.5,0.79707133]
[1773684463076,9.85988678,2324.3,2322.8,0.75557462]
[1773684463478,9.85988678,2324.3,2322.9,4.51409993]
[1773684463677,9.85988678,2324.3,2322.7,1.01132758]
[1773684463880,9.85988678,2324.3,2322.7,5.85500113]
[1773684464177,9.85988678,2324.3,2322.8,0.96990711]
[1773684464581,9.85988678,2324.3,2322.5,0.21526]
[1773684464582,9.85988678,2324.3,2322.9,6.27825232]
[1773684465079,9.85988678,2324.3,2322.9,1.43457877]
[1773684465283,9.85988678,2324.3,2322.6,1.39323205]
[1773684465585,9.85988678,2324.3,2322.9,4.75188248]
[1773684465780,9.85988678,2324.3,2323.0,1.54070465]
[1773684466181,9.85988678,2324.3,2322.6,1.49946671]
[1773684466378,9.85988678,2324.3,2322.5,0.21526]
[1773684466379,9.85988678,2324.3,2322.7,1.51791956]
[1773684466582,9.85988678,2324.3,2323.1,4.90617074]
[1773684466878,9.85988678,2324.3,2323.1,0.00533035]
[1773684467079,9.85988678,2324.3,2323.1,1.48204325]
[1773684467276,9.85988678,2324.3,2323.2,6.10269523]
[1773684467878,9.85988678,2324.3,2323.1,0.00533035]
[1773684468180,18.84388678,2324.3,2323.1,0.00533035]
[1773684468379,9.8562044,2324.2,2323.1,0.00533035]
[1773684468586,9.8562044,2324.2,2322.5,1.34236864]
[1773684468785,9.8562044,2324.2,2322.3,1.56298899]
[1773684468986,9.85988678,2324.3,2322.7,6.37069899]
[1773684469186,9.85988678,2324.3,2322.8,6.54872837]
[1773684469389,9.85988678,2324.3,2322.9,6.33348837]
[1773684469681,9.85988678,2324.3,2323.0,4.73626428]
[1773684469876,9.85988678,2324.3,2323.1,6.35107746]
[1773684472090,9.85988678,2324.3,2323.2,11.68476028]
[1773684472389,9.85988678,2324.3,2323.3,6.51172378]
[1773684472588,9.85988678,2324.3,2323.0,4.91954302]
[1773684472789,9.85988678,2324.3,2322.9,0.00445091]
[1773684474585,9.14265881,2324.1,2322.6,0.21525]
[1773684475190,9.59636278,2324.0,2322.6,5.52993481]
[1773684475581,9.59636278,2324.0,2322.6,5.53441325]
[1773684475990,9.59636278,2324.0,2322.6,0.21972844]
[1773684477087,9.59636278,2324.0,2322.8,6.07203284]
[1773684477888,9.59636278,2324.0,2323.3,0.21519]
[1773684478083,9.59636278,2324.0,2323.3,6.80471425]
[1773684478790,9.59636278,2324.0,2323.3,6.91360425]
[1773684479394,9.47932278,2324.0,2323.3,6.80471425]
[1773684479593,9.59636278,2324.2,2323.3,6.80471425]
[1773684480089,9.59636278,2324.2,2323.3,6.91965425]
[1773684480289,9.48662278,2324.2,2323.3,6.80471425]
[1773684480489,9.48662278,2324.2,2323.5,0.21518]
[1773684480886,9.48662278,2324.2,2323.5,0.32869]
[1773684481090,9.48662278,2324.2,2323.2,11.34768864]
[1773684481290,9.48662278,2324.2,2323.2,6.8815]
[1773684481490,9.48662278,2324.2,2323.2,6.772]
[1773684481689,9.48662278,2324.2,2323.0,0.21522]
[1773684482099,9.48662278,2324.2,2322.9,6.774]
[1773684482592,9.59636278,2324.0,2322.6,7.43220276]
[1773684482787,9.59636278,2323.8,2322.1,7.43015004]
[1773684482982,9.59636278,2323.6,2322.0,0.21531]
[1773684483694,9.59636278,2323.5,2322.0,7.67029832]
[1773684483892,9.59636278,2323.5,2322.0,0.21861327]
[1773684484191,9.59636278,2323.5,2321.5,6.78]
[1773684484192,9.59636278,2323.3,2321.5,6.78]
[1773684484493,9.59636278,2323.1,2321.5,6.78]
[1773684484689,9.59636278,2323.1,2320.8,8.61707]
[1773684484690,9.59636278,2322.9,2321.1,8.23802918]
[1773684484889,9.59636278,2322.7,2321.1,8.23802918]
[1773684485089,9.59636278,2322.7,2321.2,4.63448029]
[1773684485394,9.062,2323.0,2321.2,0.00410952]
[1773684485395,9.59636278,2322.5,2321.2,0.00410952]
[1773684485590,9.60036231,2322.5,2321.2,0.00410952]
[1773684486091,9.59636278,2322.3,2321.2,0.00410952]
[1773684488792,9.60036231,2322.5,2321.4,7.99983574]
[1773684489093,9.60036231,2322.5,2321.3,0.21538]
[1773684489684,9.60036231,2322.5,2321.2,0.00410952]
[1773684490088,9.60036231,2322.5,2321.2,7.87903494]
[1773684490492,9.60036231,2322.5,2321.2,0.00410952]
[1773684491096,9.60036231,2322.5,2320.8,7.82593062]
[1773684491291,5.32167889,2322.4,2320.3,7.83004014]
[1773684491495,0.00399953,2322.5,2321.2,7.80837743]
[1773684491496,9.59636278,2322.3,2321.2,7.80837743]
[1773684491697,9.59636278,2322.3,2321.4,7.80837743]
[1773684492192,9.59636278,2322.3,2321.4,7.81281066]
[1773684492692,9.59636278,2322.3,2321.4,0.00443323]
[1773684492997,9.59636278,2322.3,2321.0,6.791]
[1773684493197,9.59636278,2322.1,2321.0,6.791]
[1773684494096,9.59636278,2322.1,2321.0,6.79406941]
[1773684494697,9.59636278,2322.1,2320.7,0.21543]
[1773684495095,9.59636278,2322.1,2320.6,6.796]
[1773684495600,9.59636278,2322.1,2320.6,14.50433149]
[1773684495892,9.071,2322.0,2320.6,14.50780922]
[1773684496098,18.66736278,2321.9,2320.7,7.67097648]
[1773684496400,18.66736278,2321.9,2320.6,7.01491773]
[1773684496401,9.59636278,2321.8,2320.6,7.01491773]
[1773684496790,9.59636278,2321.8,2320.6,14.77615595]
[1773684497495,9.59636278,2321.8,2320.7,7.7186328]
[1773684497692,9.59636278,2322.2,2321.1,7.7186328]
[1773684498500,9.59636278,2322.2,2321.2,8.01412364]
[1773684499302,9.59636278,2322.2,2321.2,0.21539]
[1773684499502,9.59636278,2323.1,2322.5,7.45144964]
[1773684499698,9.59636278,2324.1,2322.8,0.21524]
[1773684499898,9.59636278,2323.6,2322.8,0.21524]
[1773684500598,9.59980785,2323.6,2322.8,0.21860796]
[1773684501103,9.59980785,2323.6,2322.8,7.78111333]
[1773684502100,9.59980785,2323.6,2322.8,7.88953333]
[1773684502297,9.59636278,2323.9,2322.8,7.78111333]
[1773684502497,9.59636278,2323.9,2322.9,6.804]
[1773684502802,9.59636278,2323.9,2323.0,7.32749886]
[1773684503204,9.60010843,2323.9,2323.0,7.21822886]
[1773684503405,9.60010843,2323.9,2323.0,7.32615886]
[1773684503906,9.60410796,2323.9,2323.0,7.32615886]
[1773684504406,9.60010843,2323.9,2323.0,7.32615886]
[1773684504806,9.60010843,2323.9,2323.0,7.32621886]
[1773684505208,8.98692814,2323.7,2322.9,6.91351]
[1773684505407,8.98692814,2323.7,2322.9,6.804]
[1773684505807,8.98692814,2323.5,2322.9,6.804]
[1773684506005,3.84709052,2325.2,2322.9,6.804]
[1773684506006,8.98692814,2325.1,2324.0,7.18682413]
[1773684506210,8.98692814,2325.1,2323.5,7.18682413]
[1773684506713,8.98692814,2324.7,2323.6,6.808]
[1773684506907,8.99236606,2324.7,2323.7,7.31307162]
[1773684507108,8.99636559,2324.7,2323.7,7.20539162]
[1773684507312,8.99236606,2324.7,2323.7,7.20539162]
[1773684507909,8.99236606,2324.7,2323.7,7.31418162]
[1773684508104,8.59777,2326.1,2323.6,6.808]
[1773684508105,8.98692814,2325.0,2323.9,7.05205655]
[1773684509020,8.98692814,2325.0,2324.1,7.11349898]
[1773684509207,8.99159745,2325.0,2324.1,6.99758898]
[1773684509413,8.99159745,2325.0,2324.2,14.0229584]
[1773684509615,8.99159745,2325.0,2324.3,7.2096384]
[1773684509909,6.68535754,2327.8,2326.5,7.09774384]
[1773684510111,6.68535754,2327.8,2324.4,0.649]
[1773684510112,8.98692814,2327.9,2326.6,1.79325276]
[1773684510316,8.98692814,2328.3,2326.7,2.02327609]
[1773684510611,8.98692814,2328.3,2326.8,4.46802033]
[1773684510810,8.98692814,2328.0,2326.8,4.46802033]
[1773684511015,8.98995385,2328.0,2326.8,0.00539147]
[1773684511617,9.06474937,2328.0,2326.8,0.00539147]
[1773684512017,8.98995385,2328.0,2326.8,0.00539147]
[1773684512515,9.06475227,2328.0,2326.1,8.29868656]
[1773684513114,8.98995385,2328.0,2326.3,1.44863941]
[1773684513419,8.98995385,2328.0,2326.5,1.35068107]
[1773684514012,9.09951814,2327.8,2326.3,0.00340811]
[1773684514214,8.98692814,2327.8,2326.3,0.00340811]
[1773684514611,8.98692814,2327.8,2326.4,4.88537708]
[1773684514808,9.09450814,2327.8,2326.3,1.56918514]
[1773684515116,9.09468814,2327.8,2326.3,1.56918514]
[1773684515515,8.98692814,2327.8,2326.3,1.56918514]
[1773684516216,8.98692814,2327.6,2326.3,0.00340811]
[1773684516419,9.09992814,2326.8,2324.9,1.50809744]
[1773684516619,8.98692814,2326.7,2324.9,1.50809744]
[1773684516811,8.98692814,2326.7,2325.2,1.50809744]
[1773684517014,8.98692814,2326.7,2325.4,1.50809744]
[1773684517415,8.98692814,2326.7,2325.6,1.4737878]
[1773684517619,8.98692814,2326.7,2325.4,0.00477832]
[1773684517919,8.98692814,2326.7,2325.6,1.51940069]
[1773684518115,8.98692814,2326.7,2325.5,4.62341307]
[1773684518321,8.98692814,2326.7,2325.4,0.00477832]